[Event "SixDays Budapest March GM B 2025"]
[Site "Budapest"]
[Date "2025.03.28"]
[Round "7.1"]
[White "Krishna C R G"]
[Black "Pap, Gyula"]
[Result "1-0"]
[Annotator "TA"]
[ECO "A41"]
[WhiteElo "2418"]
[BlackElo "2475"]
[PlyCount "79"]
[EventDate "2025.03.23"]
[EventType "tourn"]
[EventCountry "HUN"]
[SourceTitle "playchess.com"]
[Source "ChessBase"]
[SourceQuality "1"]
[TimeControl "5400+30"]

{[%evp 9,79,20,22,20,51,-13,-11,0,-12,-12,-8,-7,12,18,50,6,17,0,2,-37,11,-22,-20,3,-11,-20,-4,8,7,-26,14,16,18,25,23,23,22,22,48,22,48,48,80,68,67,54,55,26,41,32,36,22,46,44,75,64,64,64,76,69,72,80,72,87,178,180,240,238,345,340,537,483]} 1. d4 {[%emt 0:00:03]} d6 {[%emt 0:04:31]} 2. g3 {[%emt 0:02:36]} e5 {[%emt 0:01:15]} 3. Bg2 {[%emt 0:03:01]} Nf6 {[%emt 0:04:01]} 4. dxe5 {[%emt 0:16:39]} dxe5 {[%emt 0:00:08]} 5. Qxd8+ {[%emt 0:00:05]} Kxd8 {[%emt 0:00:08]} 6. Nc3 {[%emt 0:01:32] A45: Trompowsky Attack.} c6 {[%emt 0:22:26]} 7. Bg5 {[%emt 0:02:58]} (7. Nf3 $14) 7... Nbd7 {[%emt 0:02:37]} 8. O-O-O {[%emt 0:00:51] The position is equal.} Kc7 {[%emt 0:01:02]} 9. Nf3 $146 {[%emt 0:03:40]} ({Predecessor:} 9. e4 h6 10. Bd2 Bc5 11. f3 b5 12. Nge2 Nb6 13. f4 Ng4 14. Rdf1 Nc4 15. fxe5 Ngxe5 {0-1 Kasetchol,S-Jones,I (2235) Olympiad-31 Moscow 1994 (14.2)}) 9... Ng4 {[%emt 0:04:03]} 10. Rhf1 {[%emt 0:01:29]} h6 {[%emt 0:07:10]} 11. Bd2 {[%emt 0:00:03]} Be7 {[%emt 0:06:43]} 12. h3 {[%emt 0:06:36]} Ngf6 {[%emt 0:00:06][%cal Bg4f6,Bf6h5,Bh5f4][%mdl 32]} 13. Be3 {[%emt 0:04:24]} Re8 {[%emt 0:03:06]} 14. Nd2 {[%emt 0:01:12]} Bc5 {[%emt 0:03:08]} (14... Bb4 $15) 15. Bxc5 {[%emt 0:02:28]} Nxc5 {[%emt 0:00:07]} 16. b4 {[%emt 0:00:46]} Ncd7 {[%emt 0:02:04]} 17. f4 {[%emt 0:34:25]} Nh5 {[%emt 0:20:46]} 18. Nde4 {[%emt 0:04:09][%cal Bd2e4,Be4d6,Bd6e8,Be8g7,Bg7f5,Bf5h6][%mdl 32]} exf4 {[%emt 0:01:25]} 19. gxf4 {[%emt 0:00:02]} f5 {[%emt 0:02:35]} 20. Nd6 {[%emt 0:01:16]} Re3 {[%emt 0:00:46]} 21. Rf3 $36 {[%emt 0:01:24][%mdl 2048] White is more active.} (21. Nxf5 $2 Rxc3 22. Nd4 Nb6 $19) 21... Rxf3 {[%emt 0:00:47]} 22. Bxf3 {[%emt 0:00:01]} Nxf4 {[%emt 0:01:39]} 23. Ne8+ {[%emt 0:00:59]} Kb8 {[%emt 0:05:50]} 24. Nxg7 {[%emt 0:00:02]} Ne5 {[%emt 0:00:41][%cal Oa7a5]} 25. Rd8 {[%emt 0:00:34]} Nxh3 {[%emt 0:01:12]} 26. Nxf5 {[%emt 0:03:07]} Kc7 {[%emt 0:02:16][%csl LRd8,LRf5]} 27. Rh8 {[%emt 0:01:10] White is much more active.} Ng5 {[%emt 0:00:30]} 28. Nxh6 {[%emt 0:03:22]} Ngxf3 {[%emt 0:00:50]} 29. exf3 {[%emt 0:00:01]} Nxf3 {[%emt 0:00:09]} 30. Ng4 {[%emt 0:03:05]} Rb8 {[%emt 0:01:03]} 31. Nf6 {[%emt 0:00:02]} Bf5 {[%emt 0:00:46] [#]} 32. Nfd5+ $1 {[%emt 0:00:52]} cxd5 {[%emt 0:00:45]} 33. Nxd5+ {[%emt 0:00:01]} Kd6 {[%emt 0:00:28]} 34. Rxb8 {[%emt 0:00:03]} Kxd5 {[%emt 0:00:07]} 35. Rxb7 {[%emt 0:00:02]} Kc4 {[%emt 0:00:44]} 36. a3 {[%emt 0:02:02]} (36. Rxa7 Kxb4 37. Rf7 Nd4) 36... Nd4 {[%emt 0:00:34]} (36... a6 $16 37. Kb2 (37. Rc7+ Kd4 $16) 37... Ne1) 37. Rc7+ $18 {[%emt 0:02:31]} (37. Rxa7 Bxc2 38. Rc7+ Kb3 $11) 37... Kb5 {[%emt 0:00:17]} (37... Kd5 38. Rxa7 Nb5) 38. Rxa7 {[%emt 0:01:21]} Nxc2 {[%emt 0:00:41]} (38... Nc6) 39. Ra5+ {[%emt 0:00:27]} Kc4 {[%emt 0:00:07]} (39... Kb6 {was called for.} 40. Rxf5 Nxa3) 40. Rc5+ {[%emt 0:00:37] Weighted Error Value: White=0.12 (very precise) /Black=0.26 (precise)   Mistake:       	White=1     	Black=5      Inaccurate:     	White=5     	Black=6      OK:         	White=13    	Black=13     Best:        	White=4     	Black=1} ({Weaker is} 40. Rxf5 Nxa3 41. Rf4+ Kc3 $16) 1-0

[Event "SixDays Budapest March GM B 2025"]
[Site "Budapest"]
[Date "2025.03.28"]
[Round "7.2"]
[White "Li, Wenxiang"]
[Black "Nemeth, Zalan"]
[Result "0-1"]
[Annotator "RC"]
[ECO "D37"]
[WhiteElo "2260"]
[BlackElo "2341"]
[PlyCount "126"]
[EventDate "2025.03.23"]
[EventType "tourn"]
[EventCountry "HUN"]
[SourceTitle "playchess.com"]
[Source "ChessBase"]
[SourceQuality "1"]
[TimeControl "5400+30"]

1. Nf3 {[%emt 0:05:13]} Nf6 {[%emt 0:00:06]} 2. c4 {[%emt 0:00:35]} e6 {[%emt 0:00:05]} 3. d4 {[%emt 0:00:12]} d5 {[%emt 0:00:07]} 4. Nc3 {[%emt 0:00:04]} dxc4 {[%emt 0:00:06]} 5. e3 {[%emt 0:02:02]} a6 {[%emt 0:00:05]} 6. Bxc4 {[%emt 0:02:32]} b5 {[%emt 0:01:09]} 7. Bd3 {[%emt 0:00:43]} c5 {[%emt 0:00:09]} 8. a4 {[%emt 0:06:20]} b4 {[%emt 0:01:04]} 9. Ne4 {[%emt 0:00:22]} Nbd7 {[%emt 0:01:09]} 10. O-O {[%emt 0:03:37]} Bb7 {[%emt 0:00:14]} 11. Ng3 {[%emt 0:01:04]} Be7 {[%emt 0:02:02]} 12. Qe2 {[%emt 0:04:18]} O-O {[%emt 0:03:30]} 13. Rd1 {[%emt 0:02:39]} Qb8 {[%emt 0:03:34]} 14. a5 {[%emt 0:04:00]} Qa7 {[%emt 0:08:32]} 15. Ne5 {[%emt 0:04:17]} Rfd8 {[%emt 0:03:34]} 16. b3 {[%emt 0:04:44]} Rac8 {[%emt 0:01:52]} 17. Bb2 {[%emt 0:00:44]} Qa8 {[%emt 0:01:09]} 18. f4 {[%emt 0:04:15]} g6 {[%emt 0:05:03]} 19. h4 {[%emt 0:01:58]} cxd4 {[%emt 0:03:01]} 20. Bxd4 {[%emt 0:05:54]} Nxe5 {[%emt 0:08:04]} 21. fxe5 {[%emt 0:01:08]} Ne4 {[%emt 0:05:34]} 22. Nxe4 {[%emt 0:07:24]} Bxe4 {[%emt 0:00:08]} 23. h5 {[%emt 0:00:44]} Bxd3 {[%emt 0:00:17]} 24. Qxd3 {[%emt 0:01:26]} Qd5 {[%emt 0:11:00]} 25. Rd2 {[%emt 0:07:35]} Rc6 {[%emt 0:07:30]} 26. Rf1 {[%emt 0:02:28]} Bg5 {[%emt 0:04:24]} 27. Rdf2 {[%emt 0:03:03]} Rd7 {[%emt 0:07:57]} 28. hxg6 {[%emt 0:01:18]} hxg6 {[%emt 0:01:26]} 29. Qb1 {[%emt 0:07:34]} f5 {[%emt 0:04:42]} 30. exf6 {[%emt 0:00:47]} Kf7 {[%emt 0:00:05]} 31. Rf3 {[%emt 0:01:24]} e5 {[%emt 0:00:07]} 32. Bb6 {[%emt 0:03:15]} Qd3 {[%emt 0:06:19]} 33. Qe1 {[%emt 0:00:53]} e4 {[%emt 0:00:18]} 34. Rh3 {[%emt 0:00:33]} Rxf6 {[%emt 0:00:22]} 35. Rxf6+ {[%emt 0:04:39]} Bxf6 {[%emt 0:00:04]} 36. Qg3 {[%emt 0:01:31]} Qd1+ {[%emt 0:01:55]} 37. Kh2 {[%emt 0:00:05]} Kg7 {[%emt 0:00:39]} 38. Qb8 {[%emt 0:02:58]} Qd6+ {[%emt 0:00:10]} 39. Qxd6 {[%emt 0:00:03]} Rxd6 {[%emt 0:00:02]} 40. Bc5 {[%emt 0:00:53]} Rd5 {[%emt 0:03:59]} 41. Bxb4 {[%emt 0:00:05]} Rb5 {[%emt 0:00:06]} 42. Bd6 {[%emt 0:00:57]} Rxa5 {[%emt 0:00:06]} 43. Kg3 {[%emt 0:01:03]} Rd5 {[%emt 0:00:19]} 44. Bc7 {[%emt 0:00:22]} Rc5 {[%emt 0:00:49]} 45. Bd6 {[%emt 0:00:29]} Rc6 {[%emt 0:00:14]} 46. Bb4 {[%emt 0:01:18]} Be5+ {[%emt 0:00:08]} 47. Kf2 {[%emt 0:00:22]} Rb6 {[%emt 0:00:15]} 48. Ba5 {[%emt 0:00:35]} Rxb3 {[%emt 0:00:07]} 49. Rh4 {[%emt 0:00:05]} Rb2+ {[%emt 0:00:25]} 50. Kf1 {[%emt 0:00:08]} Ra2 {[%emt 0:00:25]} 51. Bb4 {[%emt 0:01:51]} a5 {[%emt 0:00:38]} 52. Bc5 {[%emt 0:00:47]} Ra4 {[%emt 0:01:12]} 53. Bb6 {[%emt 0:00:17]} g5 {[%emt 0:01:05]} 54. Rh5 {[%emt 0:02:12]} Kg6 {[%emt 0:00:07]} 55. g4 {[%emt 0:00:03]} Bf6 {[%emt 0:00:38]} 56. Kf2 {[%emt 0:00:50]} Ra2+ {[%emt 0:00:05]} 57. Kf1 {[%emt 0:01:06]} a4 {[%emt 0:00:08]} 58. Bd4 {[%emt 0:00:04]} Bxd4 {[%emt 0:00:13]} 59. exd4 {[%emt 0:00:01]} a3 {[%emt 0:01:46]} 60. Rh3 {[%emt 0:00:09]} Ra1+ {[%emt 0:00:12]} 61. Kg2 {[%emt 0:00:37]} a2 {[%emt 0:00:06]} 62. Ra3 {[%emt 0:00:03]} e3 {[%emt 0:00:07]} 63. Ra6+ {[%emt 0:00:36]} Kf7 {[%emt 0:00:07]} 0-1

[Event "SixDays Budapest March GM B 2025"]
[Site "Budapest"]
[Date "2025.03.28"]
[Round "7.3"]
[White "Sandoval Mercado, Carlos"]
[Black "Mirzoev, Azer"]
[Result "0-1"]
[Annotator "TA"]
[ECO "D30"]
[WhiteElo "2383"]
[BlackElo "2470"]
[PlyCount "110"]
[EventDate "2025.03.23"]
[EventType "tourn"]
[EventCountry "HUN"]
[SourceTitle "playchess.com"]
[Source "ChessBase"]
[SourceQuality "1"]
[TimeControl "5400+30"]

{[%evp 17,110,6,10,-31,13,0,35,31,23,29,24,26,18,23,29,0,45,23,44,33,40,32,46,40,54,14,14,15,14,0,0,0,0,0,24,-1,50,41,60,0,0,-108,-106,-97,-95,-87,-98,-90,-92,-118,-110,-152,-152,-141,-111,-118,-118,-175,-134,-171,-110,-243,-212,-220,-106,-100,-96,-297,-292,-422,-429,-5389,-745,-29997,-310,-337,-343,-339,-338,-374,-366,-395,-392,-388,-410,-476,-441,-588,-597,-737,-734,-737,-729,-770,-636]} 1. d4 {[%emt 0:05:53]} d5 {[%emt 0:03:14]} 2. c4 {[%emt 0:00:38]} e6 {[%emt 0:00:02]} 3. Nf3 {[%emt 0:01:05]} Nf6 {[%emt 0:00:07]} 4. g3 {[%emt 0:00:26]} Bb4+ {[%emt 0:00:06]} 5. Bd2 {[%emt 0:00:32]} Be7 {[%emt 0:00:06]} 6. Bg2 {[%emt 0:00:07]} O-O {[%emt 0:00:06]} 7. O-O {[%emt 0:00:06]} c6 {[%emt 0:00:04]} 8. Qc2 {[%emt 0:01:09]} Nbd7 {[%emt 0:00:41]} 9. b3 {[%emt 0:00:30]} b6 {[%emt 0:00:40]} 10. Nc3 {[%emt 0:00:41] is the new trend. E11: Bogo-Indian.} Bb7 {[%emt 0:00:10]} 11. e4 {[%emt 0:04:26]} Nxe4 {[%emt 0:04:57]} (11... dxe4 $5 12. Nxe4 c5 13. Nxf6+ Bxf6 $11) 12. Nxe4 {[%emt 0:00:08] White is slightly better.} dxe4 {[%emt 0:00:03]} 13. Qxe4 {[%emt 0:00:10]} Nf6 {[%emt 0:00:09]} 14. Qe2 {[%emt 0:00:39]} c5 {[%emt 0:00:05]} 15. dxc5 {[%emt 0:00:07]} Bxc5 {[%emt 0:08:23]} 16. b4 {[%emt 0:02:41]} Be7 {[%emt 0:04:18]} 17. Rfd1 {[%emt 0:00:40]} Qc7 {[%emt 0:05:41]} 18. Bf4 {[%emt 0:11:45]} Qc8 $146 {[%emt 0:04:02]} (18... Qc6 19. a3 Rac8 20. Ne1 Ne4 21. Rac1 Ba8 22. Bxe4 Qxe4 23. Qxe4 Bxe4 24. Rd7 Bf6 25. Rxa7 Ra8 {1-0 Nur Mukhametova,A (1699)-Tolstykh,A (1439) RUS-chT U14 Girls 2017 (4.1)}) 19. a3 {[%emt 0:01:28]} a5 {[%emt 0:07:29]} 20. b5 $1 {[%emt 0:02:52]} Ne4 {[%emt 0:00:11]} 21. Qc2 {[%emt 0:13:45] Dodges Nc3} Bc5 {[%emt 0:01:50]} 22. Nd4 {[%emt 0:00:19]} f5 {[%emt 0:00:27]} 23. Be5 {[%emt 0:09:16]} Qe8 {[%emt 0:04:03]} 24. Rd3 {[%emt 0:01:53]} Rc8 {[%emt 0:06:18]} 25. Qe2 {[%emt 0:02:19]} h6 {[%emt 0:01:50]} 26. Kh1 {[%emt 0:00:38]} Rf7 {[%emt 0:06:49]} (26... Be7 $11) 27. f3 $14 {[%emt 0:03:59]} Nf6 {[%emt 0:00:20]} 28. Re1 {[%emt 0:01:54]} (28. Bxf6 $14 Rxf6 29. f4 Bxd4 30. Rxd4 Bxg2+ 31. Kxg2) 28... Nd7 $11 {[%emt 0:03:57]} 29. Nc6 {[%emt 0:08:06]} Bxc6 $17 {[%emt 0:02:48]} 30. bxc6 {[%emt 0:00:03]} Nxe5 {[%emt 0:00:38]} 31. Qxe5 {[%emt 0:00:03]} Rxc6 {[%emt 0:00:41]} 32. f4 {[%emt 0:01:13][%cal Oe1e2] [#]} Re7 $1 {[%emt 0:04:48]} 33. Qb2 {[%emt 0:01:06]} (33. Red1 Rc8) 33... Rc8 {[%emt 0:01:17]} 34. Qb5 {[%emt 0:00:16]} Qxb5 {[%emt 0:01:20]} 35. cxb5 {[%emt 0:00:04]} Kf7 {[%emt 0:00:09]} 36. Bc6 {[%emt 0:02:10]} g5 {[%emt 0:00:33]} 37. Kg2 {[%emt 0:10:10]} (37. fxg5 $17 hxg5 38. h3) 37... Kf6 {[%emt 0:00:05]} 38. a4 {[%emt 0:00:37]} Rg8 {[%emt 0:01:28]} ({Better is} 38... gxf4 $19 {...Rg8 is the strong threat.} 39. gxf4 Rg8+ 40. Kh3 Rg4) 39. Kf3 {[%emt 0:02:09]} (39. fxg5+ $17 Rxg5 (39... hxg5 40. g4 $11) 40. Bf3) 39... h5 {[%emt 0:01:19]} 40. Rdd1 {[%emt 0:06:02] [#]} g4+ {[%emt 0:03:14]} (40... h4 $1 $19 {has better winning chances.} 41. Re2 hxg3 42. hxg3 gxf4 43. gxf4 Rh8) 41. Kg2 {[%emt 0:00:05]} h4 {[%emt 0:00:12]} 42. gxh4 $2 {[%emt 0:00:53] [#]} (42. Re5 $17) 42... Rh8 $1 $19 {[%emt 0:00:10]} 43. h3 {[%emt 0:08:07]} (43. Kg3 {is a better defense.}) 43... gxh3+ {[%emt 0:06:07]} ({Weaker is} 43... Rxh4 44. Rd3 $19) 44. Kxh3 {[%emt 0:00:04]} (44. Kh2 $142) 44... Bf2 {[%emt 0:01:03]} (44... Rg7 $142 45. Bf3 Bf2) 45. Rf1 {[%emt 0:00:03]} Rxh4+ $2 {[%emt 0:00:22]} (45... Rg7 {mates} 46. Rxf2 Rg4 47. Kh2 Rhxh4#) 46. Kg2 {[%emt 0:00:01]} Be3 {[%emt 0:00:15]} 47. Kf3 {[%emt 0:01:43]} Bxf4 {[%emt 0:00:34]} 48. Rh1 {[%emt 0:00:01]} Reh7 {[%emt 0:02:06]} 49. Rxh4 {[%emt 0:00:34]} Rxh4 {[%emt 0:00:05][%mdl 4096] Endgame KRB-KRB. Black is two pawns up.} 50. Rd7 {[%emt 0:01:19]} Bh2 {[%emt 0:00:52][%cal Oh2g1]} 51. Kg2 {[%emt 0:00:24]} Be5 {[%emt 0:00:09] Black is clearly winning.} 52. Rb7 {[%emt 0:00:13]} Bd4 {[%emt 0:00:05]} (52... Rxa4 $2 53. Rxb6 Ra2+ 54. Kf1 $19) 53. Bf3 {[%emt 0:00:34]} Bc5 {[%emt 0:00:13]} 54. Bd1 {[%emt 0:00:01]} Rd4 {[%emt 0:00:15]} 55. Bb3 {[%emt 0:00:02]} Rd2+ {[%emt 0:00:06] Weighted Error Value: White=0.59/Black=0.31  Loses game:     	White=1     	---        Mistake:       	White=6     	Black=4      Inaccurate:     	White=5     	Black=3      OK:         	White=7     	Black=20     Best:        	White=2     	Black=4      Strong:       	White=1     	Black=1} 0-1

[Event "SixDays Budapest March GM B 2025"]
[Site "Budapest"]
[Date "2025.03.28"]
[Round "7.4"]
[White "Sklokin, Sergey"]
[Black "Grover, Sahaj"]
[Result "0-1"]
[Annotator "TA"]
[ECO "C55"]
[WhiteElo "2338"]
[BlackElo "2469"]
[PlyCount "68"]
[EventDate "2025.03.23"]
[EventType "tourn"]
[EventCountry "HUN"]
[SourceTitle "playchess.com"]
[Source "ChessBase"]
[SourceQuality "1"]
[TimeControl "5400+30"]

{[%evp 11,68,16,10,20,14,17,16,23,15,12,16,22,22,10,8,0,0,0,3,-37,-29,-26,-30,-70,-66,-66,-14,-49,-59,-43,-54,-71,-40,-42,-27,-40,-20,-37,-3,-93,-78,-75,-77,-245,-202,-305,-285,-315,-312,-500,-511,-618,-610,-1398,-1290,-1224,-1174,-29991,-723]} 1. e4 {[%emt 0:00:02]} e5 {[%emt 0:10:11]} 2. Nf3 {[%emt 0:00:16]} Nc6 {[%emt 0:00:04]} 3. Bc4 {[%emt 0:00:09]} Nf6 {[%emt 0:00:11]} 4. d3 {[%emt 0:00:07]} Be7 {[%emt 0:00:04]} 5. O-O {[%emt 0:00:41]} O-O {[%emt 0:00:04]} 6. Nc3 {[%emt 0:01:01]} d6 {[%emt 0:00:06]} 7. a4 {[%emt 0:01:07] is more profitable than 7.h3 at the moment. C55: Two Knights: 4 d3, 4 d4 exd4 5 e5 and Max Lange Attack.} Bg4 {[%emt 0:14:02]} 8. h3 {[%emt 0:12:03]} Bxf3 {[%emt 0:00:05]} 9. Qxf3 {[%emt 0:01:16] The position is equal.} Nd4 {[%emt 0:00:04][%csl LRc2,LRf3] Against Ne2} 10. Qd1 {[%emt 0:10:14]} c6 {[%emt 0:04:09]} 11. Ne2 {[%emt 0:15:18]} Ne6 {[%emt 0:00:06]} 12. Bxe6 $146 {[%emt 0:00:50]} (12. Ng3 d5 13. Ba2 dxe4 14. dxe4 Qxd1 15. Rxd1 Rfd8 16. Be3 Nc5 17. Rxd8+ Rxd8 18. a5 Nfxe4 19. Nxe4 Nxe4 20. Bxa7 {½-½ Andriasian,Z (2554)-Davtyan,A (2458) ARM-ch HL 85th 2025 (9)}) 12... fxe6 {[%emt 0:05:54]} 13. Be3 d5 14. Ng3 {[%emt 0:05:13]} Qe8 {[%emt 0:00:37]} 15. c4 {[%emt 0:04:02]} d4 {[%emt 0:04:24]} 16. Bd2 {[%emt 0:01:09]} a5 {[%emt 0:00:06]} 17. f4 {[%emt 0:14:39]} exf4 {[%emt 0:00:06]} 18. Bxf4 {[%emt 0:00:22]} Qg6 {[%emt 0:00:08]} (18... Nd7 $15) 19. e5 {[%emt 0:06:21]} Nd7 {[%emt 0:00:08][%cal Of8f4] [#]} 20. Ne4 {[%emt 0:01:42]} Rf5 {[%emt 0:06:28][%cal Oa8f8]} 21. Bh2 {[%emt 0:00:05]} Rxf1+ {[%emt 0:07:31]} 22. Qxf1 {[%emt 0:00:12]} Nc5 {[%emt 0:14:49]} 23. Nxc5 {[%emt 0:00:55]} Bxc5 {[%emt 0:01:29]} 24. Qe2 {[%emt 0:01:17]} Qg5 $36 {[%emt 0:00:13][%mdl 2048] [#] Hoping for ...Qe3+. Black has the initiative.} 25. Re1 {[%emt 0:08:07]} (25. Rf1 $11 {remains equal.}) 25... Bb4 $17 {[%emt 0:08:10]} 26. Rf1 {[%emt 0:04:03]} Qe3+ {[%emt 0:00:07]} 27. Qf2 $2 {[%emt 0:00:06] Now White is beyond hope.} (27. Rf2 $17) 27... h6 {[%emt 0:02:08]} (27... Qxd3 28. Qf7+ Kh8 29. Qxb7 Qe3+ 30. Kh1 $11) 28. Bg3 {[%emt 0:02:55]} (28. Bf4 $142 Qxd3 29. Qg3 Qxg3 (29... Qxc4 $2 30. Bxh6 Bf8 31. Rxf8+ Kxf8 32. Qxg7+ Ke8 33. Qh8+ Kd7 34. Qxa8 $18) 30. Bxg3) 28... Rd8 {[%emt 0:01:20]} 29. Kh2 {[%emt 0:01:56]} Rf8 {[%emt 0:01:15] Against Qf7+. Active counter play!} ({Weaker is} 29... Qxd3 30. Qf7+ Kh8 31. Rf4 $19) 30. Qxe3 {[%emt 0:01:04]} (30. Qg1 {was the only defense.} Qxd3 31. Rd1) 30... dxe3 $19 {[%emt 0:00:05]} 31. Kg1 {[%emt 0:02:00]} e2 {[%emt 0:00:14]} 32. Rc1 {[%emt 0:00:20]} Bc5+ {[%emt 0:00:07]} 33. Kh2 {[%emt 0:00:11]} Rf1 {[%emt 0:00:22]} 34. Re1 {[%emt 0:00:12]} Bg1+ {[%emt 0:00:16] Weighted Error Value: White=0.80/Black=0.08 (flawless)   Loses game:     	White=1     	---        Mistake:       	White=3     	Black=1      Inaccurate:     	White=4     	Black=1      OK:         	White=6     	Black=16     Best:        	White=1     	Black=1} 0-1

[Event "SixDays Budapest March GM B 2025"]
[Site "Budapest"]
[Date "2025.03.28"]
[Round "7.5"]
[White "Mayank Chakraborty"]
[Black "Baasansuren, Erdene"]
[Result "1-0"]
[Annotator "TA"]
[ECO "B92"]
[WhiteElo "2444"]
[BlackElo "2394"]
[PlyCount "77"]
[EventDate "2025.03.23"]
[EventType "tourn"]
[EventCountry "HUN"]
[SourceTitle "playchess.com"]
[Source "ChessBase"]
[SourceQuality "1"]
[TimeControl "5400+30"]

{[%evp 13,77,17,20,-1,-2,0,3,0,0,0,14,14,32,33,0,0,0,8,6,12,11,0,4,-7,82,60,64,82,318,308,324,333,322,339,319,233,882,323,533,322,323,343,479,472,1216,470,470,467,796,433,881,872,825,796,1097,1088,1127,1120,1153,1044,1943,1999,2260,2168,1847,1864]} 1. e4 {[%emt 0:00:02]} c5 {[%emt 0:05:21]} 2. Nf3 {[%emt 0:00:04]} d6 {[%emt 0:00:21]} 3. d4 {[%emt 0:00:02]} cxd4 {[%emt 0:00:17]} 4. Nxd4 {[%emt 0:00:02]} Nf6 {[%emt 0:00:07]} 5. Nc3 {[%emt 0:00:04]} a6 {[%emt 0:00:07]} 6. Be2 {[%emt 0:00:04]} e5 {[%emt 0:00:41]} 7. Nb3 {[%emt 0:00:02]} Be7 {[%emt 0:00:07]} 8. h4 {[%emt 0:00:04] B92: Sicilian Najdorf: 6 Be2.} Be6 {[%emt 0:06:14]} 9. f4 {[%emt 0:00:06]} b5 {[%emt 0:00:24][%cal Bb7b5,Bb5b4][%mdl 32]} 10. g4 {[%emt 0:01:35][%cal Bg2g4,Bg4g5][%mdl 32] The position is equal.} b4 {[%emt 0:21:34]} 11. Nd5 {[%emt 0:00:06]} Bxd5 {[%emt 0:03:39]} 12. exd5 {[%emt 0:00:05]} Ne4 $1 {[%emt 0:00:20]} 13. g5 {[%emt 0:00:42]} Qb6 {[%emt 0:00:12]} 14. Rf1 {[%emt 0:00:45][%cal Bh1f1,Bf1f2,Bf2g2][%mdl 32] [#] Wards off Qf2+} Ng3 {[%emt 0:02:13]} 15. Rf2 {[%emt 0:00:10] Black should prevent Bg4.} Nd7 $146 {[%emt 0:02:15]} (15... h6 16. fxe5 hxg5 17. Qd3 Nxe2 18. Qxe2 Rxh4 19. exd6 Rh1+ {1-0 Westrum,K (2106)-Loftgaard,M (2214) Copenhagen Obro CXU op 2023 (6)}) 16. Bg4 {[%emt 0:28:35]} f5 {[%emt 0:13:12]} 17. gxf6 {[%emt 0:00:38] A sharp opening} Nxf6 {[%emt 0:01:26] and ...Nfe4 should not be overlooked Excellent horsemanship.} 18. Qf3 $132 {[%emt 0:01:18][%mdl 2048] White is not holding back} Nxg4 {[%emt 0:03:45]} (18... Nfe4 $1 $11 {remains equal.} 19. Be3 Qb5) 19. Qxg4 $16 {[%emt 0:00:18]} Ne4 {[%emt 0:00:35]} 20. Rg2 {[%emt 0:01:46]} Nc5 $2 {[%emt 0:35:45] [#] A mistake that costs the game.} (20... Qb7 $16 {is a better defense.}) 21. Be3 $1 $18 {[%emt 0:05:37]} (21. Qxg7 Rf8 $16) 21... exf4 {[%emt 0:00:16]} (21... Nd3+ 22. Kd2 (22. cxd3 Qxe3+ 23. Re2 Qxf4 $17) 22... Nc5 23. Nxc5 (23. Qxg7 Rf8 $18) 23... dxc5 24. fxe5 $18 (24. Qxg7 Bf6 $18)) 22. Bxc5 {[%emt 0:16:30]} (22. Bxf4 Nxb3 23. cxb3 (23. axb3 Qd4 $14) 23... Qb7 $14 (23... Qd4 $2 24. Rd1 $18)) (22. Qxf4 Rf8 23. Qg4 Rf7 $18) (22. Qxg7 Bxh4+ 23. Kd1 O-O-O $16) 22... dxc5 {[%emt 0:00:20] Black is weak on the light squares} 23. O-O-O {[%emt 0:01:00]} (23. Qxf4 Qf6 24. Qxf6 Bxf6 $14) (23. Qxg7 Qf6 $16) 23... Qd6 {[%emt 0:02:13]} 24. Na5 {[%emt 0:02:23]} Qd7 $2 {[%emt 0:00:32]} (24... f3 25. Qxf3 Qf6) 25. Qxf4 $2 {[%emt 0:01:57]} (25. Qh5+ Kf8 26. Rxg7 Kxg7 27. Rg1+ Kf8 28. Qe5) 25... O-O-O $2 {[%emt 0:00:30]} (25... Qd6 26. Qxd6 Bxd6 27. Rxg7 O-O-O) 26. Nc6 {[%emt 0:02:19]} Bd6 {[%emt 0:00:21]} 27. Qc4 {[%emt 0:01:02]} Rdg8 {[%emt 0:00:40]} 28. Qxa6+ {[%emt 0:00:10] White is clearly winning.} Kc7 {[%emt 0:00:01]} (28... Qb7 $142 29. Na7+ Kb8 30. Qxd6+ Kxa7 31. Qxc5+ Qb6 32. Qe7+ Ka8) 29. Qa7+ {[%emt 0:04:58]} (29. Na5 $142 {White wants to mate with Qb7+.} Kb8 30. Kb1) 29... Kc8 {[%emt 0:00:05]} 30. Qb6 {[%emt 0:00:04] aiming for Na7+.} Qc7 {[%emt 0:00:54]} (30... Qb7 $142 31. Na7+ Kb8 32. Qxd6+ Kxa7 33. Qxc5+ Qb6 34. Qe7+ Ka6) 31. Qa6+ {[%emt 0:00:05]} Kd7 {[%emt 0:00:10]} (31... Qb7 $142 32. Na7+ Kb8 33. Qxd6+ Kxa7 34. Qxc5+ Qb6 35. Qe7+ Qb7 36. Qxb7+ Kxb7) 32. Rf1 {[%emt 0:01:11]} Bf4+ {[%emt 0:00:28]} 33. Kb1 {[%emt 0:00:05]} g5 {[%emt 0:00:14]} 34. hxg5 {[%emt 0:02:40]} Re8 {[%emt 0:00:30]} 35. a3 {[%emt 0:01:57]} bxa3 {[%emt 0:00:12]} 36. Qa4 {[%emt 0:00:40]} a2+ {[%emt 0:01:13]} 37. Ka1 {[%emt 0:00:42]} Rhf8 {[%emt 0:00:31]} 38. Nd4+ {[%emt 0:00:39]} (38. Qxa2 $2 {perishes.} Ra8 39. Re1 Rxa2+ 40. Kxa2 Re8 $19) 38... Kc8 {[%emt 0:00:25]} 39. Ne6 {[%emt 0:00:20] Weighted Error Value: White=0.60/Black=1.22  Loses game:     	---       	Black=1      Mistake:       	White=2     	Black=6      Inaccurate:     	White=1     	Black=1      OK:         	White=11    	Black=6      Best:        	White=1     	Black=4      Strong:       	White=1     	Black=1} 1-0